fUST/lending_fUST_20250225
["ID","MTS","AMOUNT","RATE_DAILY","PERIOD"]
[354349765,1740438676890,-511.0560175,0.0001532,2]
[354349766,1740438676900,-151.0,0.0001532,2]
[354349767,1740438676910,-151.0,0.0001532,2]
[354349768,1740438676919,-151.0,0.0001532,2]
[354349769,1740438676929,-500.0,0.00015342,2]
[354349770,1740438676938,-555.51,0.00015342,2]
[354349771,1740438676948,-481.14,0.00015342,2]
[354349772,1740438676957,-579.61,0.00015342,2]
[354349773,1740438676967,-500.0,0.00015342,2]
[354349774,1740438676976,-622.33,0.00015342,2]
[354349775,1740438676985,-504.28,0.00015342,2]
[354349776,1740438676995,-500.0,0.00015342,2]
[354349777,1740438677004,-947.21,0.00015342,2]
[354349778,1740438677013,-695.76,0.00015342,2]
[354349779,1740438677023,-642.26,0.00015342,2]
[354349780,1740438677032,-500.0,0.00015342,2]
[354349781,1740438677045,-36606.72,0.00015342,2]
[354349782,1740438677055,-618.53,0.00015342,2]
[354349783,1740438677064,-504.78,0.00015342,2]
[354349784,1740438677075,-1443.33,0.00015342,2]
[354349785,1740438677085,-567.72,0.00015342,2]
[354349786,1740438677095,-2659.86,0.00015342,2]
[354349787,1740438677104,-1578.42,0.00015342,2]
[354349788,1740438677115,-1173.9,0.00015342,2]
[354349789,1740438677125,-761.51,0.00015342,2]
[354349790,1740438677134,-807.98,0.00015342,2]
[354349791,1740438677144,-470.5,0.00015342,2]
[354349792,1740438677155,-3916.14,0.00015342,2]
[354349793,1740438677166,-9439.32,0.00015342,2]
[354349794,1740438677176,-649.39,0.00015342,2]
[354349795,1740438677186,-151.0,0.00015342,2]
[354349796,1740438677196,-824.14,0.00015342,2]
[354349797,1740438677206,-174.036188,0.00015342,2]
[354349798,1740438677216,-886.14,0.00015342,2]
[354349799,1740438677226,-663.35,0.00015342,2]
[354349800,1740438677236,-725.8,0.00015342,2]
[354349801,1740438677245,-11569.59,0.00015342,2]
[354349802,1740438677255,-367.234333,0.00015342,2]
[354349803,1740438677265,-367.234333,0.00015342,2]
[354349804,1740438677275,-151.0,0.00015342,2]
[354349805,1740438677284,-1037.02,0.00015342,2]
[354349806,1740438677293,-151.0,0.00015342,2]
[354349807,1740438677302,-520.28,0.00015342,2]
[354349808,1740438677312,-500.0,0.00015342,2]
[354349809,1740438677321,-2568.48,0.00015342,2]
[354349810,1740438677330,-151.0,0.00015342,2]
[354349811,1740438677339,-569.69,0.00015342,2]
[354349812,1740438677348,-2001.57,0.00015342,2]
[354349813,1740438677358,-1066.8,0.00015342,2]
[354349814,1740438677367,-1179.01,0.00015342,2]
[354349815,1740438677375,-914.26,0.00015342,2]
[354349816,1740438677385,-151.0,0.00015342,2]
[354349817,1740438677396,-554.2,0.00015342,2]
[354349818,1740438677406,-4845.71,0.00015342,2]
[354349819,1740438677416,-1651.45,0.00015342,2]
[354349820,1740438677427,-640.92,0.00015342,2]
[354349821,1740438677436,-629.83,0.00015342,2]
[354349822,1740438677446,-2353.75,0.00015342,2]
[354349823,1740438677456,-594.58,0.000154,2]
[354349824,1740438677465,-511.0560175,0.0001542,2]
[354349825,1740438677475,-1297.77791265,0.00015422,2]
[354349826,1740438677484,-1500.0,0.00015422,2]
[354349827,1740438677493,-1500.0,0.00015422,2]
[354349828,1740438677502,-500.0,0.00015424,2]
[354349829,1740438677511,-151.0,0.00015424,2]
[354349830,1740438677520,-276.917823,0.00015424,2]
[354349831,1740438677530,-151.0,0.00015424,2]
[354349832,1740438677539,-555.51,0.00015424,2]
[354349833,1740438677548,-579.61,0.00015424,2]
[354349834,1740438677558,-233.14,0.00015424,2]
[354349835,1740438677567,-622.33,0.00015424,2]
[354349836,1740438677576,-151.0,0.00015424,2]
[354349837,1740438677586,-278.686533,0.00015424,2]
[354349838,1740438677595,-278.686533,0.00015424,2]
[354349839,1740438677605,-500.0,0.00015424,2]
[354349840,1740438677614,-947.21,0.00015424,2]
[354349841,1740438677623,-695.76,0.00015424,2]
[354349842,1740438677632,-642.26,0.00015424,2]
[354349843,1740438677642,-500.0,0.00015424,2]
[354349844,1740438677652,-36606.72,0.00015424,2]
[354349845,1740438677661,-618.53,0.00015424,2]
[354349846,1740438677671,-504.78,0.00015424,2]
[354349847,1740438677680,-1443.33,0.00015424,2]
[354349848,1740438677689,-567.72,0.00015424,2]
[354349849,1740438677698,-2659.86,0.00015424,2]
[354349850,1740438677708,-1578.42,0.00015424,2]
[354349851,1740438677718,-1173.9,0.00015424,2]
[354349852,1740438677728,-761.51,0.00015424,2]
[354349853,1740438677737,-807.98,0.00015424,2]
[354349854,1740438677747,-3916.14,0.00015424,2]
[354349855,1740438677756,-9439.32,0.00015424,2]
[354349856,1740438677765,-649.39,0.00015424,2]
[354349857,1740438677775,-824.14,0.00015424,2]
[354349858,1740438677784,-886.14,0.00015424,2]
[354349859,1740438677793,-663.35,0.00015424,2]
[354349860,1740438677803,-725.8,0.00015424,2]
[354349861,1740438677812,-11569.59,0.00015424,2]
[354349862,1740438677821,-1037.02,0.00015424,2]
[354349863,1740438677831,-520.28,0.00015424,2]
[354349864,1740438677841,-500.0,0.00015424,2]
[354349865,1740438677850,-2568.48,0.00015424,2]
[354349866,1740438677860,-569.69,0.00015424,2]
[354349867,1740438677870,-2001.57,0.00015424,2]
[354349868,1740438677880,-1066.8,0.00015424,2]
[354349869,1740438677889,-1179.01,0.00015424,2]
[354349870,1740438677900,-914.26,0.00015424,2]
[354349871,1740438677909,-554.2,0.00015424,2]
[354349872,1740438677919,-4845.71,0.00015424,2]
[354349873,1740438677928,-1651.45,0.00015424,2]
[354349874,1740438677938,-640.92,0.00015424,2]
[354349875,1740438677947,-629.83,0.00015424,2]
[354349876,1740438677957,-2353.75,0.00015424,2]
[354349877,1740438677967,-300.0,0.000155,5]
[354349878,1740438677976,-328.0,0.00015506,2]
[354349879,1740438677985,-555.51,0.00015506,2]
[354349880,1740438677993,-579.61,0.00015506,2]
[354349881,1740438678003,-622.33,0.00015506,2]
[354349882,1740438678012,-410.46,0.00015506,2]
[354349883,1740438678021,-947.21,0.00015506,2]
[354349884,1740438678031,-695.76,0.00015506,2]
[354349885,1740438678043,-642.26,0.00015506,2]
[354349886,1740438678189,-408.54,0.00015506,2]
[354349887,1740438678200,-36606.72,0.00015506,2]
[354349888,1740438678210,-618.53,0.00015506,2]
[354349889,1740438678220,-504.78,0.00015506,2]
[354349890,1740438678229,-1443.33,0.00015506,2]
[354349891,1740438678240,-567.72,0.00015506,2]
[354349892,1740438678250,-2659.86,0.00015506,2]
[354349893,1740438678261,-1578.42,0.00015506,2]
[354349894,1740438678271,-1173.9,0.00015506,2]
[354349895,1740438678281,-761.51,0.00015506,2]
[354349896,1740438678291,-807.98,0.00015506,2]
[354349897,1740438678300,-3916.14,0.00015506,2]
[354349898,1740438678309,-9439.32,0.00015506,2]
[354349899,1740438678319,-649.39,0.00015506,2]
[354349900,1740438678329,-824.14,0.00015506,2]
[354349901,1740438678339,-886.14,0.00015506,2]
[354349902,1740438678349,-663.35,0.00015506,2]
[354349903,1740438678359,-725.8,0.00015506,2]
[354349904,1740438678368,-11569.59,0.00015506,2]
[354349905,1740438678378,-1037.02,0.00015506,2]
[354349906,1740438678388,-520.28,0.00015506,2]
[354349907,1740438678398,-385.02,0.00015506,2]
[354349908,1740438678409,-2568.48,0.00015506,2]
[354349909,1740438678419,-569.69,0.00015506,2]
[354349910,1740438678430,-2001.57,0.00015506,2]
[354349911,1740438678440,-1066.8,0.00015506,2]
[354349912,1740438678450,-1179.01,0.00015506,2]
[354349913,1740438678459,-914.26,0.00015506,2]
[354349914,1740438678469,-554.2,0.00015506,2]
[354349915,1740438678479,-4845.71,0.00015506,2]
[354349916,1740438678489,-1651.45,0.00015506,2]
[354349917,1740438678499,-640.92,0.00015506,2]
[354349918,1740438678509,-629.83,0.00015506,2]
[354349919,1740438678519,-2353.75,0.00015506,2]
[354349920,1740438678529,-511.0560175,0.0001552,2]
[354349921,1740438678539,-156.858131,0.0001554,2]
[354349922,1740438678550,-555.53,0.00015589,2]
[354349923,1740438678559,-579.78,0.00015589,2]
[354349924,1740438678569,-622.35,0.00015589,2]
[354349925,1740438678579,-947.38,0.00015589,2]
[354349926,1740438678589,-695.98,0.00015589,2]
[354349927,1740438678599,-642.34,0.00015589,2]
[354349928,1740438678609,-36606.95886798,0.00015589,2]
[354349929,1740438678620,-618.61,0.00015589,2]
[354349930,1740438678630,-504.82,0.00015589,2]
[354349931,1740438678640,-1443.41723635,0.00015589,2]
[354349932,1740438678650,-567.75,0.00015589,2]
[354349933,1740438678660,-2660.03664496,0.00015589,2]
[354349934,1740438678671,-1578.57018864,0.00015589,2]
[354349935,1740438678681,-1174.05,0.00015589,2]
[354349936,1740438678691,-761.59,0.00015589,2]
[354349937,1740438678701,-808.03,0.00015589,2]
[354349938,1740438678710,-3916.19738952,0.00015589,2]
[354349939,1740438678719,-9439.43308126,0.00015589,2]
[354349940,1740438678729,-649.52,0.00015589,2]
[354349941,1740438678739,-824.37,0.00015589,2]
[354349942,1740438678749,-886.29343116,0.00015589,2]
[354349943,1740438678759,-663.52,0.00015589,2]
[354349944,1740438678769,-725.87,0.00015589,2]
[354349945,1740438678778,-11569.75799911,0.00015589,2]
[354349946,1740438678788,-1037.25,0.00015589,2]
[354349947,1740438678798,-520.49,0.00015589,2]
[354349948,1740438678807,-2568.71,0.00015589,2]
[354349949,1740438678817,-569.88309381,0.00015589,2]
[354349950,1740438678827,-2001.73,0.00015589,2]
[354349951,1740438678837,-1066.85537995,0.00015589,2]
[354349952,1740438678847,-1179.03705752,0.00015589,2]
[354349953,1740438678856,-914.26544751,0.00015589,2]
[354349954,1740438678866,-554.33,0.00015589,2]
[354349955,1740438678876,-4845.82944294,0.00015589,2]
[354349956,1740438678887,-1651.63,0.00015589,2]
[354349957,1740438678898,-641.04518486,0.00015589,2]
[354349958,1740438678908,-629.99,0.00015589,2]
[354349959,1740438678918,-2353.87824521,0.00015589,2]
[354349960,1740438678928,-511.0560175,0.0001562,2]
[354349961,1740438678939,-153.0,0.00015644,2]
[354349962,1740438678949,-511.0560175,0.0001572,2]
[354349963,1740438678959,-269.301624,0.00015775,2]
[354349964,1740438678968,-659.4407639,0.00015797,2]
[354349965,1740438678979,-1100.0,0.00015808,2]
[354349966,1740438678988,-5000.0,0.00015818,2]
[354349967,1740438678997,-511.0560175,0.0001582,2]
[354349968,1740438679007,-156.72567235,0.00015918,2]
[354349969,1740438679017,-511.0560175,0.0001592,2]
[354349970,1740438679026,-500.0,0.00015973,2]
[354349971,1740438679040,-150.29,0.00015973,2]
[354349972,1740438679049,-500.0,0.00015973,2]
[354349973,1740438679059,-5000.0,0.00016,7]
[354349974,1740438679068,-3000.0,0.00016,2]
[354349975,1740438679079,-3000.0,0.0001601,2]
[354349976,1740438679088,-511.0560175,0.0001602,2]
[354349977,1740438679097,-3000.0,0.0001602,2]
[354349978,1740438679107,-3000.0,0.0001603,2]
[354349979,1740438679117,-3000.0,0.0001604,2]
[354349980,1740438679127,-4517.98122,0.0001605,2]
[354349981,1740438679136,-156.72567235,0.0001611,2]
[354349982,1740438679146,-166.52967041,0.00016119,2]
[354349983,1740438679156,-511.0560175,0.0001612,2]
[354349984,1740438679166,-500.0,0.0001612,2]
[354349985,1740438679176,-500.0,0.0001612,2]
[354349986,1740438679186,-153.0,0.00016137,2]
[354349987,1740438679195,-153.0,0.00016137,2]
[354349988,1740438679205,-694.72,0.00016164,2]
[354349989,1740438679214,-198.15294622,0.00016173,2]
[354349990,1740438679224,-65264.6751173,0.000162,2]
[354349991,1740438679234,-65264.67511726,0.000162,2]
[354349992,1740438679244,-65264.67511726,0.000162,2]
[354349993,1740438679254,-65264.67511726,0.000162,2]
[354349994,1740438679264,-65264.67511726,0.000162,2]
[354349995,1740438679274,-151.0,0.000162,2]
[354349996,1740438679283,-185.44811,0.000162,2]
[354349997,1740438679293,-151.0,0.000162,2]
[354349998,1740438679303,-151.0,0.000162,2]
[354349999,1740438679313,-511.0560175,0.0001622,2]
[354350000,1740438679324,-500.0,0.00016247,2]
[354350001,1740438679333,-500.60614424,0.00016247,2]
[354350002,1740438679343,-511.0560175,0.0001632,2]
[354350003,1740438679353,-501.34694772,0.0001632,2]
[354350004,1740438679363,-151.0,0.00016338,2]
[354350005,1740438679372,-2000.0,0.000164,2]
[354350006,1740438679382,-511.0560175,0.0001642,2]
[354350007,1740438679392,-237.67742865,0.00016438,2]
[354350008,1740438679401,-500.0,0.00016438,2]
[354350009,1740438679412,-500.0,0.00016438,2]
[354350010,1740438679421,-369.685612,0.00016438,2]
[354350011,1740438679431,-369.685612,0.00016438,2]
[354350012,1740438679441,-369.685612,0.00016438,2]
[354350013,1740438679451,-369.685612,0.00016438,2]
[354350014,1740438679461,-369.685612,0.00016438,2]
[354350015,1740438679471,-369.685612,0.00016438,2]
[354350016,1740438679481,-500.0,0.00016438,2]
[354350017,1740438679491,-1577.38657574,0.000165,7]
[354350018,1740438679500,-33117.23,0.000165,2]
[354350019,1740438679510,-19601.91606613,0.000165,7]
[354350020,1740438679520,-156.858131,0.000165,7]
[354350021,1740438679530,-511.0560175,0.0001652,2]
[354350022,1740438679540,-500.0,0.00016521,2]
[354350023,1740438679549,-235537.31771022,0.00016548,2]
[354350024,1740438679558,-1612.62836502,0.00016607,2]
[354350025,1740438679568,-511.0560175,0.0001662,2]
[354350026,1740438679579,-511.0560175,0.0001672,2]
[354350027,1740438679592,-2000.0,0.0001672,2]
[354350028,1740438679601,-1260.19029485,0.0001672,2]
[354350029,1740438679611,-500.0,0.00016795,2]
[354350030,1740438679621,-889.39145222,0.000168,7]
[354350031,1740438679631,-2009.86,0.000168,5]
[354350032,1740438679640,-511.0560175,0.0001682,2]
[354350033,1740438679650,-30671.9722853,0.000169,3]
[354350034,1740438679660,-151.0,0.000169,2]
[354350035,1740438679670,-19601.91606613,0.000169,3]
[354350036,1740438679680,-151.0,0.000169,2]
[354350037,1740438679690,-367.234333,0.000169,2]
[354350038,1740438679700,-367.234333,0.000169,2]
[354350039,1740438679710,-151.0,0.000169,2]
[354350040,1740438679719,-181.764804,0.000169,2]
[354350041,1740438679729,-511.0560175,0.0001692,2]
[354350042,1740438679738,-1000.0,0.00016986,2]
[354350043,1740438679747,-47000.0,0.00017,6]
[354350044,1740438679758,-1713.00107708,0.00017,5]
[354350045,1740438679768,-175.0624,0.00017,2]
[354350046,1740438679777,-175.0624,0.00017,2]
[354350047,1740438679787,-112639.23175785,0.00017,2]
[354350048,1740438679797,-1838.28067314,0.00017,2]
[354350049,1740438679806,-1220.42678912,0.00017,2]
[354350050,1740438679815,-151.0,0.00017,2]
[354350051,1740438679825,-278.686533,0.00017,2]
[354350052,1740438679835,-278.686533,0.00017,2]
[354350053,1740438679845,-151.0,0.00017,2]
[354350054,1740438679854,-511.0560175,0.0001702,2]
[354350055,1740438679864,-611.08542375,0.00017069,2]
[354350056,1740438679874,-173.10700505,0.000171,4]
[354350057,1740438679884,-30022.81337657,0.0001711,2]
[354350058,1740438679894,-369.685612,0.0001711,2]
[354350059,1740438679904,-369.685612,0.0001711,2]
[354350060,1740438679914,-511.0560175,0.0001712,2]
[354350061,1740438679923,-1100.0,0.00017178,2]
[354350062,1740438679933,-1000.0,0.000172,5]
[354350063,1740438679942,-511.0560175,0.0001722,2]
[354350064,1740438679951,-261.78175757,0.0001725,5]
[354350065,1740438679961,-1000.0,0.000173,5]
[354350066,1740438679972,-511.0560175,0.0001732,2]
[354350067,1740438679981,-1000.0,0.000174,5]
[354350068,1740438679990,-511.0560175,0.0001742,2]
[354350069,1740438680000,-107804.34867072,0.00017484,2]
[354350070,1740438680009,-175.0624,0.000175,2]
[354350071,1740438680018,-175.0624,0.000175,2]
[354350072,1740438680028,-511.0560175,0.0001752,2]
[354350073,1740438680039,-694.72,0.00017534,4]
[354350074,1740438680050,-1500.0,0.00017534,2]
[354350075,1740438680060,-2042.13429591,0.000176,2]
[354350076,1740438680071,-511.0560175,0.0001762,2]
[354350077,1740438680081,-1000.0,0.00017688,2]
[354350078,1740438680090,-1000.0,0.00017695,2]
[354350079,1740438680100,-2332.22574532,0.000177,7]
[354350080,1740438680109,-511.0560175,0.0001772,2]
[354350081,1740438680121,-1000.0,0.00017723,2]
[354350082,1740438680131,-175.0624,0.00017735,2]
[354350083,1740438680140,-175.0624,0.00017735,2]
[354350084,1740438680150,-1002.90059045,0.00017741,2]
[354350085,1740438680159,-1000.0,0.00017752,2]
[354350086,1740438680168,-1000.0,0.00017784,2]
[354350087,1740438680178,-369.685612,0.00017793,2]
[354350088,1740438680187,-369.685612,0.00017793,2]
[354350089,1740438680197,-369.685612,0.00017793,2]
[354350090,1740438680207,-369.685612,0.00017793,2]
[354350091,1740438680216,-151.0,0.00017793,2]
[354350092,1740438680225,-151.0,0.00017793,2]
[354350093,1740438680234,-151.0,0.00017793,2]
[354350094,1740438680244,-151.0,0.00017793,2]
[354350095,1740438680253,-1000.0,0.00017793,7]
[354350096,1740438680262,-1000.0,0.00017793,7]
[354350097,1740438680271,-1000.0,0.00017793,7]
[354350098,1740438680280,-1000.0,0.00017793,7]
[354350099,1740438680290,-1000.0,0.00017793,7]
[354350100,1740438680299,-1000.0,0.00017793,7]
[354350101,1740438680309,-1000.0,0.00017793,7]
[354350102,1740438680318,-1000.0,0.00017793,7]
[354350103,1740438680327,-1000.0,0.00017793,7]
[354350104,1740438680337,-1000.0,0.00017793,7]
[354350105,1740438680346,-1000.0,0.00017793,7]
[354350106,1740438680355,-1000.0,0.00017793,7]
[354350107,1740438680364,-1000.0,0.00017793,7]
[354350108,1740438680502,-1000.0,0.00017793,7]
[354350109,1740438680512,-1000.0,0.00017793,7]
[354350110,1740438680521,-1000.0,0.00017793,7]
[354350111,1740438680530,-278.686533,0.00017793,2]
[354350112,1740438680540,-278.686533,0.00017793,2]
[354350113,1740438680549,-278.686533,0.00017793,2]
[354350114,1740438680559,-278.686533,0.00017793,2]
[354350115,1740438680568,-296.277259,0.00017793,2]
[354350116,1740438680578,-151.0,0.00017793,2]
[354350117,1740438680588,-200.824036,0.00017793,2]
[354350118,1740438680599,-659.29139963,0.000178,2]
[354350119,1740438680608,-5904.69311433,0.000178,2]
[354350120,1740438680618,-19601.91606613,0.000178,7]
[354350121,1740438680628,-151.0,0.00017807,2]
[354350122,1740438680637,-151.0,0.00017807,2]
[354350123,1740438680647,-500.0,0.00017808,7]
[354350124,1740438680656,-511.0560175,0.0001782,2]
[354350125,1740438680666,-396.0,0.00017833,2]
[354350126,1740438680675,-1000.0,0.00017839,2]
[354350127,1740438680685,-153.0,0.00017848,2]
[354350128,1740438680694,-153.0,0.00017848,2]
[354350129,1740438680703,-153.0,0.00017848,2]
[354350130,1740438680713,-153.0,0.00017848,2]
[354350131,1740438680722,-153.0,0.00017848,2]
[354350132,1740438680732,-153.0,0.00017848,2]
[354350133,1740438680741,-153.0,0.00017848,2]
[354350134,1740438680751,-153.0,0.00017848,2]
[354350135,1740438680760,-153.0,0.00017848,2]
[354350136,1740438680770,-153.0,0.00017848,2]
[354350137,1740438680780,-153.0,0.00017848,2]
[354350138,1740438680790,-156.858131,0.00017849,5]
[354350139,1740438680799,-153.0,0.0001785,2]
[354350140,1740438680809,-153.0,0.0001785,2]
[354350141,1740438680819,-153.0,0.0001785,2]
[354350142,1740438680828,-153.0,0.0001785,2]
[354350143,1740438680838,-153.0,0.0001785,2]
[354350144,1740438680847,-153.0,0.0001785,2]
[354350145,1740438680857,-153.0,0.0001785,2]
[354350146,1740438680867,-153.0,0.0001785,2]
[354350147,1740438680876,-153.0,0.0001785,2]
[354350148,1740438680886,-153.0,0.0001785,2]
[354350149,1740438680896,-153.0,0.0001785,2]
[354350150,1740438680906,-153.0,0.00017853,2]
[354350151,1740438680916,-153.0,0.00017853,2]
[354350152,1740438680925,-153.0,0.00017853,2]
[354350153,1740438680934,-153.0,0.00017853,2]
[354350154,1740438680943,-153.0,0.00017853,2]
[354350155,1740438680953,-153.0,0.00017853,2]
[354350156,1740438680962,-153.0,0.00017853,2]
[354350157,1740438680972,-153.0,0.00017853,2]
[354350158,1740438680981,-153.0,0.00017853,2]
[354350159,1740438680990,-153.0,0.00017853,2]
[354350160,1740438681001,-153.0,0.00017853,2]
[354350161,1740438681010,-201.819517,0.00017859,2]
[354350162,1740438681020,-1000.0,0.00017904,2]
[354350163,1740438681030,-1000.0,0.00017909,2]
[354350164,1740438681043,-151.0,0.0001791,2]
[354350165,1740438681053,-367.234333,0.0001791,2]
[354350166,1740438681063,-367.234333,0.0001791,2]
[354350167,1740438681072,-367.234333,0.0001791,2]
[354350168,1740438681082,-367.234333,0.0001791,2]
[354350169,1740438681092,-151.0,0.0001791,2]
[354350170,1740438681101,-151.0,0.0001791,2]
[354350171,1740438681111,-151.0,0.0001791,2]
[354350172,1740438681121,-151.0,0.0001791,2]
[354350173,1740438681131,-501.88513988,0.00017912,2]
[354350174,1740438681140,-214835.45710324,0.00017912,7]
[354350175,1740438681150,-732.55101817,0.00017912,32]
[354350176,1740438681160,-15008.31212715,0.00017912,15]
[354350177,1740438681169,-48195.35239929,0.00017912,7]
[354350178,1740438681179,-266829.66795368,0.00017912,10]
[354350179,1740438681188,-2983.4901634,0.00017912,35]
[354350180,1740438681197,-234.06789512,0.00017912,10]
[354350181,1740438681207,-3005.89968824,0.00017912,2]
[354350182,1740438681216,-200.0,0.00017912,10]
[354350183,1740438681226,-424.443427,0.00017912,35]
[354350184,1740438681235,-3050.25993067,0.00017912,2]
[354350185,1740438681245,-90104.17296191,0.00017912,2]
[354350186,1740438681254,-30000.0,0.00017912,2]
[354350187,1740438681263,-16655.1490586,0.00017912,2]
[354350188,1740438681273,-300.0,0.00017912,2]
[354350189,1740438681282,-800.33439133,0.00017912,2]
[354350190,1740438681292,-251.82947381,0.00017912,2]
[354350191,1740438681301,-293.42834602,0.00017912,2]
[354350192,1740438681310,-812.72446109,0.00017912,2]
[354350193,1740438681320,-1640.56690275,0.00017912,2]
[354350194,1740438681329,-323.20859012,0.00017912,2]
[354350195,1740438681338,-1195.34650674,0.00017912,2]
[354350196,1740438681348,-288.45578662,0.00017912,2]
[354350197,1740438681357,-51103.44170061,0.00017912,2]
[354350198,1740438681366,-355.12634404,0.00017912,2]
[354350199,1740438681375,-4156.6173071,0.00017912,2]
[354350200,1740438681384,-154.62792299,0.00017912,2]
[354350201,1740438681393,-10184.54181637,0.00017912,2]
[354350202,1740438681403,-6220.45673976,0.00017912,2]
[354350203,1740438681412,-155.73472583,0.00017912,2]
[354350204,1740438681421,-520.36464831,0.00017912,2]
[354350205,1740438681431,-1694.68877988,0.00017912,2]
[354350206,1740438681440,-440.91715057,0.00017912,2]
[354350207,1740438681449,-1847.52143591,0.00017912,2]
[354350208,1740438681458,-13622.25372911,0.00017912,2]
[354350209,1740438681467,-177.16783989,0.00017912,2]
[354350210,1740438681476,-462.85639622,0.00017912,2]
[354350211,1740438681485,-38641.17524412,0.00017912,2]
[354350212,1740438681494,-187.23876781,0.00017912,2]
[354350213,1740438681503,-151.16086988,0.00017912,2]
[354350214,1740438681512,-1381.89757995,0.00017912,2]
[354350215,1740438681522,-299.9551188,0.00017912,2]
[354350216,1740438681531,-580.53459474,0.00017912,2]
[354350217,1740438681541,-5825.22775532,0.00017912,2]
[354350218,1740438681550,-15672.24451514,0.00017912,2]
[354350219,1740438681559,-501.87456366,0.00017912,2]
[354350220,1740438681568,-3915.12935999,0.00017912,2]
[354350221,1740438681577,-882.61349813,0.00017912,2]
[354350222,1740438681586,-84724.32446127,0.00017912,2]
[354350223,1740438681595,-3848.52847866,0.00017912,2]
[354350224,1740438681604,-1007.5114347,0.00017912,2]
[354350225,1740438681614,-334.5,0.00017912,30]
[354350226,1740438681623,-355.342547,0.00017912,35]
[354350227,1740438681632,-12366.98684833,0.00017912,30]
[354350228,1740438681641,-385450.43104183,0.00017912,10]
[354350229,1740438681650,-418.2171443,0.00017912,35]
[354350230,1740438681659,-1780.43923129,0.00017912,30]
[354350231,1740438681668,-247.5,0.00017912,30]
[354350232,1740438681677,-9057.9170662,0.00017912,2]
[354350233,1740438681687,-3004.9358548,0.00017912,3]
[354350234,1740438681696,-532.93326962,0.00017912,3]
[354350235,1740438681705,-6877.01847918,0.00017912,2]
[354350236,1740438681714,-500.0,0.00017912,5]
[354350237,1740438681723,-1301.929259,0.00017912,30]
[354350238,1740438681733,-250.0,0.00017912,10]
[354350239,1740438681742,-259.055577,0.00017912,10]
[354350240,1740438681751,-151.0,0.00017912,2]
[354350241,1740438681761,-151.0,0.00017912,2]
[354350242,1740438681770,-511.0560175,0.0001792,2]
[354350243,1740438681779,-175.0624,0.00017939,2]
[354350244,1740438681789,-175.0624,0.00017939,2]
[354350245,1740438681798,-109909.12190482,0.00017952,5]
[354350246,1740438681807,-1000.0,0.00017952,2]
[354350247,1740438681817,-216.54724,0.00017952,2]
[354350248,1740438681826,-25455.26,0.00018,2]
[354350249,1740438681836,-7033.35763372,0.00018,4]
[354350250,1740438681845,-175.0624,0.00018,2]
[354350251,1740438681854,-175.0624,0.00018,2]
[354350252,1740438681864,-500.0,0.00018,2]
[354350253,1740438681873,-369.685612,0.00018,2]
[354350254,1740438681883,-369.685612,0.00018,2]
[354350255,1740438681892,-369.685612,0.00018,2]
[354350256,1740438681903,-369.685612,0.00018,2]
[354350257,1740438681912,-369.685612,0.00018,2]
[354350258,1740438681921,-369.685612,0.00018,2]
[354350259,1740438681931,-369.685612,0.00018,2]
[354350260,1740438681940,-369.685621,0.00018,2]
[354350261,1740438681949,-151.0,0.00018,2]
[354350262,1740438681959,-253.782,0.00018,2]
[354350263,1740438681968,-151.0,0.00018,2]
[354350264,1740438681977,-358.03,0.00018,2]